fUSD/lending_fUSD_20240920
["ID","MTS","AMOUNT","RATE_DAILY","PERIOD"]
[338639083,1726836631905,-300.0,0.00012679,2]
[338639084,1726836631914,-366.82259718,0.0001268,2]
[338639085,1726836632050,-2036.362,0.0001268,2]
[338639086,1726836632062,-6510.898581,0.0001268,2]
[338639087,1726836632107,-2761.56172182,0.0001268,2]
[338639088,1726836632116,-186.92,0.0001269,2]
[338639089,1726836632126,-150.27,0.000127,2]
[338639090,1726836632135,-422.7,0.000127,2]
[338639091,1726836632144,-150.0,0.000127,2]
[338639092,1726836632153,-428.09,0.000127,2]
[338639093,1726836632162,-753.25,0.000127,2]
[338639094,1726836632171,-422.7,0.000127,2]
[338639095,1726836632180,-533.42,0.000127,2]
[338639096,1726836632190,-257.49,0.000127,2]
[338639097,1726836632199,-186.92,0.00012715,2]
[338639098,1726836632208,-168.71903338,0.00012735,2]
[338639099,1726836632217,-211.0,0.00012738,2]
[338639101,1726836632226,-150.0,0.00012761,2]
[338639103,1726836632235,-150.0,0.00012772,2]
[338639105,1726836632244,-499.99,0.00012772,2]
[338639107,1726836632253,-150.0,0.00012774,2]
[338639109,1726836632262,-150.0,0.00012809,2]
[338639111,1726836632271,-150.0,0.00012846,2]
[338639113,1726836632281,-150.0,0.00012846,2]
[338639115,1726836632289,-186.92,0.00012885,2]
[338639117,1726836632298,-186.92,0.00012886,2]
[338639119,1726836632308,-186.92,0.00012889,2]
[338639121,1726836632317,-500.0,0.00012895,2]
[338639123,1726836632326,-200.0,0.00012895,2]
[338639125,1726836632336,-3134.1206,0.00012896,2]
[338639126,1726836632345,-1631.6351,0.00012899,2]
[338639127,1726836632354,-2161.12427416,0.00012899,2]
[338639128,1726836632365,-324.2343219,0.00012899,2]
[338639132,1726836637901,-1079.0,0.00012899,2]
[338639133,1726836637997,-58393.49240394,0.00012899,2]
[338639134,1726836638006,-1079.3456,0.00012899,2]
[338639135,1726836638016,-1000.0,0.00012899,2]
[338639136,1726836638025,-2210.84913997,0.00012899,2]
[338639137,1726836638035,-2210.84913996,0.00012899,2]
[338639138,1726836638044,-2210.84913996,0.00012899,2]
[338639139,1726836638054,-2210.84913996,0.00012899,2]
[338639140,1726836638063,-2210.84913996,0.00012899,2]
[338639141,1726836638074,-2210.84913996,0.000129,2]
[338639142,1726836638083,-2210.84913996,0.000129,2]
[338639143,1726836638093,-2210.84913996,0.000129,2]
[338639144,1726836638103,-2210.84913996,0.000129,2]
[338639145,1726836638112,-202.83731714,0.000129,2]
[338639146,1726836638122,-416.384,0.000129,2]
[338639147,1726836638133,-2210.84913996,0.000129,2]
[338639148,1726836638142,-2000.0,0.000129,3]
[338639149,1726836638151,-7500.0,0.000129,2]
[338639150,1726836638160,-164.99535302,0.000129,2]
[338639151,1726836638170,-158.50695911,0.000129,2]
[338639152,1726836638180,-168.36798198,0.000129,2]
[338639153,1726836638189,-328.44532766,0.000129,2]
[338639154,1726836638199,-150.0,0.00012904,2]
[338639155,1726836638207,-150.0,0.00012924,2]
[338639156,1726836638217,-150.0,0.00012925,2]
[338639157,1726836638226,-1261.0,0.00012946,2]
[338639158,1726836638235,-624.0,0.00012946,2]
[338639159,1726836638244,-448.0,0.00012946,2]
[338639160,1726836638253,-1547.0,0.00012946,2]
[338639161,1726836638262,-804.253,0.00012946,2]
[338639162,1726836638271,-930.0,0.00012946,2]
[338639163,1726836638281,-1901.0,0.00012946,2]
[338639164,1726836638289,-553.0,0.00012946,2]
[338639165,1726836638298,-248.0,0.00012946,2]
[338639166,1726836638305,-806.0,0.00012946,2]
[338639167,1726836638314,-3344.0,0.00012946,2]
[338639168,1726836638323,-1914.0,0.00012946,2]
[338639169,1726836638331,-150.0,0.00012946,2]
[338639170,1726836638342,-13489.0,0.00012946,2]
[338639171,1726836638351,-5861.0,0.00012946,2]
[338639172,1726836638359,-1079.0,0.00012946,2]
[338639173,1726836638369,-150.0,0.00012969,2]
[338639174,1726836638378,-158.85892903,0.00012973,2]
[338639175,1726836638388,-500.0,0.00012973,2]
[338639176,1726836638396,-200.63136152,0.00012973,2]
[338639177,1726836638403,-160.35568771,0.00012973,2]
[338639178,1726836638412,-159.21059266,0.00012973,2]
[338639180,1726836638420,-454.39570048,0.00012973,2]
[338639181,1726836638429,-495.60950826,0.00012973,2]
[338639184,1726836638439,-500.0,0.00012973,2]
[338639186,1726836638449,-198.94022254,0.00012986,2]
[338639188,1726836638457,-150.0,0.00012986,2]
[338639190,1726836638467,-150.0,0.00012986,2]
[338639192,1726836638476,-292.38079082,0.00012986,2]
[338639194,1726836638487,-623.30837792,0.00012998,2]
[338639195,1726836638496,-418939.80359679,0.00012999,5]
[338639197,1726836638506,-624.0,0.00013,2]
[338639199,1726836638515,-128384.31434666,0.00013,2]
[338639201,1726836638524,-23257.47815173,0.00013,2]
[338639239,1726836638875,-0.95420873,0.00013,2]
[338639241,1726836638886,-285.99169477,0.00013,2]
[338639243,1726836638897,-6008.70808001,0.00013,2]
[338639357,1726836639941,-1241.25456,0.00013,2]
[338639359,1726836639952,-1428.791,0.00013,2]
[338639361,1726836639964,-261.5074128,0.00013,2]
[338639540,1726836641840,-1766.75181984,0.00013,2]
[338639542,1726836641852,-1371.95153531,0.00013,2]
[338639662,1726836642950,-165503.35218076,0.00013,2]
[338639664,1726836642960,-489539.34946064,0.00013,2]
[338639956,1726836645814,-565.0,0.00013,2]
[338639958,1726836645824,-203.6862021,0.00013,2]
[338639960,1726836645837,-721.62621433,0.00013,2]
[338639970,1726836645924,-6357.8,0.00013,2]
[338639991,1726836646133,-2683.43487138,0.00013,2]
[338641158,1726836673857,500.0,0.00011164,2]
[338641159,1726836754413,500.0,0.00022999,120]
[338641160,1726836754687,500.0,0.00022999,120]
[338641161,1726836754980,500.0,0.00022999,120]
[338641162,1726836755229,500.0,0.00022999,120]
[338641163,1726836755503,500.0,0.00022999,120]
[338641164,1726836755822,500.0,0.00022999,120]
[338641165,1726836755877,500.0,0.00011164,2]
[338641166,1726836756123,500.0,0.00022999,120]
[338641167,1726836756204,675.0,0.00011164,2]
[338641168,1726836756415,500.0,0.00022999,120]
[338641169,1726836756673,500.0,0.00022999,120]
[338641170,1726836756958,500.0,0.00022999,120]
[338641171,1726836757227,500.0,0.00022999,120]
[338641172,1726836757519,500.0,0.00022999,120]
[338641173,1726836757812,500.0,0.00022999,120]
[338641174,1726836758103,500.0,0.00022999,120]
[338641175,1726836758606,500.0,0.00022999,120]
[338641176,1726836758901,478.56,0.00022999,120]
[338641177,1726836790134,152.78,0.000149,31]
[338641178,1726836790191,152.78,0.000149,31]
[338641179,1726836790246,152.78,0.000149,31]
[338641180,1726836790315,152.78,0.000149,31]
[338641181,1726836790367,152.78,0.000149,31]
[338641182,1726836790432,152.78,0.000149,31]
[338641183,1726836790488,152.78,0.000149,31]
[338641184,1726836790566,152.78,0.000149,31]
[338641185,1726836790605,152.78,0.000149,31]
[338641186,1726836790692,152.78,0.000149,31]
[338641187,1726836790742,152.78,0.000149,31]
[338641188,1726836790802,152.78,0.000149,31]
[338641189,1726836790866,152.78,0.000149,31]
[338641190,1726836790922,152.78,0.000149,31]
[338641191,1726836852620,455.17,0.0001023,2]
[338641192,1726836855988,150.0,0.00022986,120]
[338641193,1726837056343,500.0,0.00022999,120]
[338641194,1726837056628,482.86406307,0.00022999,120]
[338641195,1726837166011,150.0,0.00022999,120]
[338641196,1726837330927,505.69,0.00011965,2]
[338641197,1726837395524,250.0,0.00011959,2]
[338641198,1726837398751,152.79,0.000149,31]
[338641199,1726837398804,152.79,0.000149,31]
[338641200,1726837398860,152.79,0.000149,31]
[338641201,1726837398917,152.79,0.000149,31]
[338641202,1726837398985,152.79,0.000149,31]
[338641203,1726837399034,152.79,0.000149,31]
[338641204,1726837399098,152.79,0.000149,31]
[338641205,1726837399168,152.79,0.000149,31]
[338641206,1726837399225,152.79,0.000149,31]
[338641207,1726837399278,152.79,0.000149,31]
[338641208,1726837399338,152.79,0.000149,31]
[338641209,1726837399402,152.79,0.000149,31]
[338641210,1726837399471,152.79,0.000149,31]
[338641211,1726837399539,152.79,0.000149,31]
[338641212,1726837405577,432.41,0.00010049,2]
[338641213,1726837445139,250.0,0.00011954,2]
[338641214,1726837487301,512.1,0.00011936,2]
[338641215,1726837609135,150.0,0.00022986,120]
[338641216,1726837674682,500.0,0.00022999,120]
[338641217,1726837675017,500.0,0.00022999,120]
[338641218,1726837675283,500.0,0.00022999,120]
[338641219,1726837675562,500.0,0.00022999,120]
[338641220,1726837675840,500.0,0.00022999,120]
[338641221,1726837676100,500.0,0.00022999,120]
[338641222,1726837676371,500.0,0.00022999,120]
[338641223,1726837676789,489.28,0.00022999,120]
[338641259,1726837832103,-1000.0,0.00012024,2]
[338641261,1726837832114,-171.21,0.00012058,2]
[338641263,1726837832124,-432.41,0.00012313,2]
[338641265,1726837832133,-4390.45043,0.0001275,2]
[338641266,1726837832143,-80.90766109,0.00012767,2]
[338641270,1726837832413,-69.09233891,0.00012767,2]
[338641271,1726837832424,-298.07853773,0.00012786,2]
[338641272,1726837838092,-201.92146227,0.00012786,2]
[338641273,1726837838102,-500.0,0.00012794,2]
[338641274,1726837838111,-293.1672868,0.00012803,2]
[338641275,1726837838202,-206.8327132,0.00012803,2]
[338641276,1726837838212,-500.0,0.00012812,2]
[338641277,1726837838222,-150.0,0.00012815,2]
[338641278,1726837838231,-500.0,0.00012821,2]
[338641279,1726837838241,-500.0,0.0001283,2]
[338641280,1726837838250,-500.0,0.00012838,2]
[338641281,1726837838260,-150.0,0.00012842,2]
[338641282,1726837838269,-10512.48231602,0.00012842,2]
[338641283,1726837838312,-2976.51768398,0.00012842,2]
[338641284,1726837838322,-500.0,0.00012847,2]
[338641285,1726837838331,-500.0,0.00012856,2]
[338641286,1726837838342,-500.0,0.00012865,2]
[338641287,1726837838352,-500.0,0.00012874,2]
[338641288,1726837838362,-499.99,0.00012874,2]
[338641289,1726837838376,-500.0,0.00012882,2]
[338641291,1726837838388,-215.3,0.00012882,2]
[338641292,1726837838397,-500.0,0.00012891,2]
[338641293,1726837838407,-657.15,0.00012893,2]
[338641294,1726837838416,-421.72,0.00012893,2]
[338641295,1726837838426,-29999.99,0.00012893,2]
[338641297,1726837838435,-1722.63,0.00012893,2]
[338641299,1726837838446,-500.0,0.00012895,2]
[338641301,1726837838458,-500.0,0.00012895,2]
[338641303,1726837838467,-500.0,0.00012896,2]
[338641305,1726837838477,-200.0,0.00012896,2]
[338641307,1726837838487,-1000.0,0.00012899,2]
[338641309,1726837838496,-2500.0,0.00012899,2]
[338641311,1726837838506,-649.07941485,0.000129,2]
[338641313,1726837838515,-374.189,0.000129,2]
[338641315,1726837838525,-500.0,0.000129,2]
[338641317,1726837838535,-601.111324,0.000129,2]
[338641319,1726837838544,-996.66,0.000129,2]
[338641321,1726837838553,-1364.7996,0.000129,2]
[338641323,1726837838563,-41806.85914905,0.000129,2]
[338641325,1726837838572,-198.49526764,0.000129,2]
[338641327,1726837838582,-2026.46577604,0.000129,2]
[338641329,1726837838591,-2026.46577603,0.000129,2]
[338641331,1726837838601,-1500.0,0.00012902,2]
[338641333,1726837838610,-150.0,0.00012919,2]
[338641334,1726837838621,-228.35410344,0.00012924,2]
[338641335,1726837838630,-14708.18,0.00012932,2]
[338641337,1726837838640,-150.0,0.00012934,2]
[338641339,1726837838649,-150.0,0.00012944,2]
[338641341,1726837838658,-544.041,0.00012946,2]
[338641343,1726837838667,-14712.36,0.00012969,2]
[338641345,1726837838676,-500.0,0.00012973,2]
[338641347,1726837838686,-108763.53145708,0.00012999,2]
[338641349,1726837838695,-15112.04,0.00013,2]
[338641351,1726837838705,-571.0,0.00013,2]
[338641353,1726837838714,-176.05001171,0.00013,2]
[338641355,1726837838723,-94654.21530694,0.00013,2]
[338641519,1726837840336,-301.19013755,0.000129,2]
[338641521,1726837840345,-41777.93173046,0.00013,2]
[338641522,1726837840354,-3226386.44199857,0.00013,2]
[338641523,1726837840364,-2988.40728403,0.00013,2]
[338641524,1726837840378,-1162217.15878687,0.00013,2]
[338642014,1726837846150,-500.0,0.00012777,2]
[338642015,1726837846160,-7012.57911343,0.00013,2]
[338642019,1726837846206,-20866.27426838,0.00013,2]
[338642024,1726837846265,-291.32999295,0.00013,2]
[338642357,1726837943758,404.74,0.00010302,2]
[338642358,1726838006215,152.82,0.000149,31]
[338642359,1726838006287,152.82,0.000149,31]
[338642360,1726838006365,152.82,0.000149,31]
[338642361,1726838006419,152.82,0.000149,31]
[338642362,1726838006481,152.82,0.000149,31]
[338642363,1726838006554,152.82,0.000149,31]
[338642364,1726838006601,152.82,0.000149,31]
[338642366,1726838041886,150.74,0.00010959,2]
[338642367,1726838045796,150.0,0.00022999,120]
[338642368,1726838046484,171.24,0.00011989,2]
[338642369,1726838052450,753.73,0.00010959,2]
[338642370,1726838066551,619.94,0.00011989,2]
[338642371,1726838066737,529.61,0.00011989,2]
[338642372,1726838082283,1000.0,0.00012,2]
[338642373,1726838160871,150.0,0.00022986,120]
[338642374,1726838162671,164.41,0.00010959,2]
[338642375,1726838175637,150.0,0.00011913,2]
[338642376,1726838246618,500.93,0.000119,2]
[338642377,1726838250049,445.03,0.00022999,120]
[338642378,1726838270188,167.8,0.00011888,2]
[338642379,1726838273530,1000.0,0.00011888,2]
[338642380,1726838325947,8258.96,0.0001187,2]
[338642381,1726838380621,1050.0,0.00011,2]
[338642382,1726838411471,429.01,0.00011848,2]
[338642383,1726838413387,179.99297769,0.00011967,2]
[338642384,1726838414574,500.0,0.00022999,120]
[338642385,1726838414828,500.0,0.00022999,120]
[338642386,1726838415125,269.23195676,0.00022999,120]
[338642387,1726838443079,160.32,0.00011857,2]
[338642388,1726838467217,150.23,0.00011856,2]
[338642389,1726838484467,250.0,0.00011854,2]
[338642390,1726838521933,564.56,0.00011854,2]
[338642391,1726838594231,392.26,9.951e-05,2]
[338642392,1726838599672,264.8,0.00011863,2]
[338642393,1726838609840,250.0,0.00011863,2]
[338642394,1726838612475,500.0,0.00022999,120]
[338642395,1726838612738,500.0,0.00022999,120]
[338642396,1726838613003,500.0,0.00022999,120]
[338642397,1726838613279,500.0,0.00022999,120]
[338642398,1726838613366,152.83,0.000149,31]
[338642399,1726838613415,152.83,0.000149,31]
[338642400,1726838613485,152.83,0.000149,31]
[338642401,1726838613542,500.0,0.00022999,120]
[338642402,1726838613571,152.83,0.000149,31]
[338642403,1726838613616,152.83,0.000149,31]
[338642404,1726838613671,152.83,0.000149,31]
[338642405,1726838613725,152.83,0.000149,31]
[338642406,1726838614163,500.0,0.00022999,120]
[338642407,1726838614776,500.0,0.00022999,120]
[338642408,1726838615089,500.0,0.00022999,120]
[338642409,1726838615357,500.0,0.00022999,120]
[338642410,1726838615647,500.0,0.00022999,120]
[338642411,1726838615925,500.0,0.00022999,120]
[338642412,1726838616231,500.0,0.00022999,120]
[338642413,1726838616520,500.0,0.00022999,120]
[338642414,1726838616841,500.0,0.00022999,120]
[338642415,1726838617115,500.0,0.00022999,120]
[338642416,1726838617447,500.0,0.00022999,120]
[338642417,1726838617560,200.0,0.00011869,2]
[338642418,1726838617747,500.0,0.00022999,120]
[338642419,1726838618123,500.0,0.00022999,120]
[338642420,1726838618416,500.0,0.00022999,120]
[338642421,1726838618692,500.0,0.00022999,120]
[338642422,1726838619015,500.0,0.00022999,120]
[338642423,1726838619324,500.0,0.00022999,120]
[338642424,1726838619607,500.0,0.00022999,120]
[338642425,1726838619892,467.84,0.00022999,120]
[338642426,1726838620897,949.85,0.00011869,2]
[338642427,1726838622601,171.21,0.00011875,2]
[338642428,1726838639667,150.0,0.00023,120]
[338642429,1726838703051,150.0,0.00011688,2]
[338642430,1726838704982,150.0,0.00011688,2]
[338642431,1726838712409,150.0,0.00011688,2]
[338642432,1726838722922,150.0,0.00011688,2]
[338642433,1726838765829,150.0,0.00022986,120]
[338642434,1726838767025,510.19577,0.0001,2]
[338642435,1726838770541,250.0,0.00011876,2]
[338642436,1726838783200,189.14,0.00010959,2]
[338642438,1726838834890,200.0,0.00011872,2]
[338642440,1726838924696,150.0,0.00023,120]
[338642460,1726839032241,-392.26,0.00012215,2]
[338642461,1726839032251,-5.81514173,0.00012654,2]
[338642467,1726839032304,-494.18485827,0.00012654,2]
[338642468,1726839032313,-500.0,0.00012662,2]
[338642470,1726839032322,-500.0,0.00012671,2]
[338642471,1726839032331,-500.0,0.0001268,2]
[338642474,1726839032341,-500.0,0.00012689,2]
[338642476,1726839032358,-500.0,0.00012698,2]
[338642478,1726839032367,-500.0,0.00012706,2]
[338642480,1726839032376,-500.0,0.00012715,2]
[338642482,1726839032385,-499.99,0.00012715,2]
[338642483,1726839032394,-5358.67923173,0.00012715,2]
[338642484,1726839032408,-270.54903608,0.00012715,2]
[338642485,1726839032420,-367.47173219,0.00012715,2]
[338642486,1726839032428,-120.8686067,0.00012715,2]
[338642487,1726839032440,-879.1213933,0.00012715,2]
[338642488,1726839032450,-500.0,0.00012724,2]
[338642489,1726839032459,-500.0,0.00012733,2]
[338642490,1726839032468,-500.0,0.00012742,2]
[338642491,1726839032478,-301.26696792,0.0001275,2]
[338642492,1726839032489,-198.73303208,0.0001275,2]
[338642493,1726839032500,-232.41732283,0.00012759,2]
[338642494,1726839032511,-267.58267717,0.00012759,2]
[338642495,1726839032521,-500.0,0.00012768,2]
[338642496,1726839032530,-150.0,0.00012769,2]
[338642497,1726839032539,-10924.19403622,0.0001278,2]
[338642498,1726839032549,-301.62,0.000128,2]
[338642499,1726839032558,-301.99,0.000128,2]
[338642500,1726839032568,-813.19,0.000128,2]
[338642501,1726839032577,-162.74,0.000128,2]
[338642502,1726839032587,-150.0,0.00012802,2]
[338642503,1726839032599,-4747.34854958,0.00012874,2]
[338642505,1726839032616,-3752.65145042,0.00012874,2]
[338642507,1726839032626,-8500.0,0.00012882,2]
[338642509,1726839032635,-13645.35619698,0.00012883,2]
[338642511,1726839032644,-332.217,0.00012886,2]
[338642513,1726839032654,-8500.0,0.00012891,2]
[338642514,1726839032663,-8370.95,0.00012893,2]
[338642515,1726839032672,-500.0,0.00012896,2]
[338642517,1726839032682,-200.0,0.00012896,2]
[338642519,1726839032691,-8500.0,0.000129,2]
[338642521,1726839032701,-2302.7651,0.000129,2]
[338642523,1726839032711,-150.0,0.000129,2]
[338642525,1726839032720,-646.45713212,0.000129,2]
[338642526,1726839032730,-150.0,0.000129,2]
[338642527,1726839032739,-8500.0,0.000129,2]
[338642528,1726839032749,-2848.93396026,0.000129,2]
[338642529,1726839032759,-30583.46420281,0.000129,2]
[338642530,1726839032769,-5052.178,0.000129,2]
[338642531,1726839032778,-1083.58709621,0.000129,2]
[338642532,1726839032788,-204.63828779,0.000129,2]
[338642533,1726839032798,-329.50705356,0.000129,2]
[338642534,1726839032807,-300.0,0.00012929,2]
[338642535,1726839032817,-9878.42,0.00012946,2]
[338642536,1726839032826,-150.0,0.00012946,2]
[338642537,1726839032837,-1200.35058676,0.0001297,2]
[338642538,1726839032852,-150.0,0.00012972,2]
[338642539,1726839032862,-150.0,0.00012989,2]
[338642540,1726839032871,-151.47,0.0001299,2]
[338642541,1726839032881,-151.47,0.0001299,2]
[338642542,1726839032892,-151.47,0.0001299,2]
[338642543,1726839032901,-151.47,0.0001299,2]
[338642544,1726839032911,-151.47,0.0001299,2]
[338642545,1726839032922,-151.47,0.0001299,2]
[338642546,1726839032932,-191.8705803,0.0001299,2]
[338642547,1726839032941,-191.8705803,0.0001299,2]
[338642548,1726839032950,-1460.2405044,0.00012994,2]
[338642549,1726839032960,-9933.1349723,0.00012994,2]
[338642550,1726839032970,-711.4114753,0.00012994,2]
[338642551,1726839032979,-108763.53145608,0.00012997,2]
[338642552,1726839032989,-311.65418896,0.00012999,2]
[338642553,1726839032998,-2229.17910254,0.00012999,2]
[338642554,1726839033009,-971.0,0.00013,2]
[338642555,1726839033018,-824.0,0.00013,2]
[338642556,1726839033028,-176.05001171,0.00013,2]
[338642557,1726839033039,-171570.54446563,0.00013,2]
[338642558,1726839033051,-378.25609224,0.00013,2]
[338642559,1726839033063,-621.77146932,0.00013,2]
[338642560,1726839033075,-1099.97243844,0.00013,2]
[338642561,1726839033087,-527.75,0.00013,2]
[338642562,1726839033102,-429.8742519,0.00013,2]
[338642563,1726839038223,-1599.21665465,0.00013,2]
[338642564,1726839038234,-762.26449306,0.00013,2]
[338642565,1726839038282,-445.42957939,0.00013,2]
[338642566,1726839038292,-4059.32519846,0.00013,2]
[338642567,1726839038349,-26501.48370032,0.00013,2]
[338642568,1726839038360,-5187.62373921,0.00013,2]
[338642569,1726839038369,-741.0,0.00013,2]
[338642570,1726839038379,-2498.55851013,0.00013,2]
[338642577,1726839038592,-1297.85964101,0.00013,2]
[338642579,1726839038605,-4569.7388019,0.00013,2]
[338642581,1726839038617,-10183.12300004,0.00013,2]
[338642584,1726839038630,-2225.88811415,0.00013,2]
[338642586,1726839038641,-536.35875233,0.00013,2]
[338642588,1726839038653,-720.75149601,0.00013,2]
[338642590,1726839038664,-759253.22121685,0.00013,2]
[338642592,1726839038674,-187744.49512915,0.00013,2]
[338642595,1726839038687,-376.84091201,0.00013,2]
[338642596,1726839038697,-79749.96374913,0.00013,2]
[338642597,1726839038708,-410.82807031,0.00013,2]
[338642598,1726839038719,-544.61761896,0.00013,2]
[338642616,1726839040227,-1131.59228596,0.00013,2]
[338642617,1726839040239,-376.10072315,0.00013,2]
[338642618,1726839040286,-2794.1539724,0.00013,2]
[338642619,1726839040297,-1571.6264019,0.00013,2]
[338642620,1726839040309,-1576.43386853,0.00013,2]
[338642621,1726839040320,-1053.70598647,0.00013,2]
[338642622,1726839040331,-3157.154,0.00013,2]
[338642623,1726839040343,-722.9693,0.00013,2]
[338642624,1726839040357,-500.0,0.00013,2]
[338642625,1726839040369,-3537.73874138,0.00013,2]
[338642626,1726839040379,-6416.51950035,0.00013,2]
[338642627,1726839040390,-286.25732844,0.00013,2]
[338642628,1726839040401,-495.55389865,0.00013,2]
[338642629,1726839040412,-300.4416464,0.00013,2]
[338642630,1726839040423,-1412.7558607,0.00013,2]
[338642631,1726839040434,-650.0,0.00013,2]
[338642632,1726839040445,-1087.46169813,0.00013,2]
[338642633,1726839040456,-1206.83348292,0.00013,2]
[338642634,1726839040472,-154.00400739,0.00012955,2]
[338642635,1726839040481,-1580824.13566513,0.00013,2]
[338642636,1726839040490,-1746557.45043835,0.00013,2]
[338642637,1726839040499,-2289572.78658386,0.00013,2]
[338642638,1726839040510,-147041.54970239,0.00013,2]
[338642639,1726839040519,-64667.55637784,0.00013,2]
[338642640,1726839040530,-117617.95877687,0.00013,2]
[338642641,1726839040541,-1275.2531778,0.00013,2]
[338642642,1726839040552,-1748.56626615,0.00013,2]
[338642644,1726839040563,-1467.8621135,0.00013,2]
[338642646,1726839040574,-162596.11320799,0.00013,2]
[338642648,1726839040585,-674.47609604,0.00013,2]
[338642650,1726839040596,-564.97466028,0.00013,2]
[338642651,1726839040611,-730.55933782,0.00013,2]
[338642652,1726839040622,-1333.31807868,0.00013,2]
[338642653,1726839040633,-78079.80296049,0.00013,2]
[338642654,1726839040644,-1259.96086,0.00013,2]
[338642655,1726839040655,-615.61579363,0.00013,2]
[338642656,1726839040674,-2025.26791969,0.00013,2]
[338642765,1726839043302,-672.0,0.00013,2]
[338642767,1726839043311,-5195.91004832,0.00013,2]
[338642768,1726839043322,-7365.16641705,0.00013,2]
[338642769,1726839043333,-2325.34922941,0.00013,2]
[338642770,1726839043344,-6723.34743954,0.00013,2]
[338642771,1726839043358,-1731.12872193,0.00013,2]
[338642772,1726839043481,-1289.19989872,0.00013,2]
[338642773,1726839043493,-1535.85323252,0.00013,2]
[338642774,1726839043505,-2924.57075317,0.00013,2]
[338642775,1726839043518,-6932.26853858,0.00013,2]
[338642776,1726839043541,-214268.6347495,0.00013,2]
[338642777,1726839043551,-56162.05529899,0.00013,2]
[338642784,1726839046190,-93515.1135588,0.00013,2]
[338642785,1726839046201,-11483.3336256,0.00013,2]
[338642786,1726839046212,-355.99679615,0.00013,2]
[338642787,1726839046307,-308.1,0.00013,2]
[338642788,1726839046367,-53469.69354071,0.00013,2]
[338642789,1726839046484,-366216.78787863,0.00013,2]
[338642792,1726839218461,152.84,0.000149,31]
[338642793,1726839218516,152.84,0.000149,31]
[338642794,1726839218573,152.84,0.000149,31]
[338642795,1726839218654,152.84,0.000149,31]
[338642796,1726839218705,152.84,0.000149,31]
[338642797,1726839218756,152.84,0.000149,31]
[338642798,1726839218823,152.84,0.000149,31]
[338642799,1726839227781,150.0,0.00023,120]
[338642800,1726839391658,150.0,0.00022986,120]
[338642801,1726839438016,368.55,0.00010398,2]
[338642802,1726839452793,500.0,0.00022999,120]
[338642803,1726839453076,497.32,0.00022999,120]
[338642804,1726839523734,150.0,0.00023,120]
[338642805,1726839564935,1000.0,0.00011955,2]
[338642806,1726839766778,152.35,0.00011863,2]
[338642807,1726839800513,200.0,0.00011861,2]
[338642808,1726839822663,152.86,0.000149,31]
[338642809,1726839822714,152.86,0.000149,31]
[338642810,1726839822766,152.86,0.000149,31]
[338642811,1726839822822,152.86,0.000149,31]